Cogmind - Beta 16 @@@ ROGUE MODE // 2025.12.27 @ 15:11:58 Player: Skergy Result: Destroyed by P-60 Hacker with Shock Rifle Performance ------------- Evolutions (0) 0 Regions Visited (3) 600 Robots Destroyed (13) 65 Value Destroyed (412) 412 Prototype IDs (23) 460 Alien Tech Used (0) 0 Bonus (300) 300 TOTAL SCORE: 1837 Bonus ------- Aligned with FarCom 300 Cogmind --------- Core Integrity 0/250 Matter 238/300 Energy 74/100 System Corruption 8% Temperature Cool (0) Movement Walking (330) Ox3 Location -10/Exiles Parts ------- > --- POWER (1) -------- (None) > --- PROPULSION (2) --- Aluminum Leg > --- UTILITY (2) ------ High-capacity Storage Unit > --- WEAPON (2) ------- (None) > --- INVENTORY (20) --- Light Ion Engine Light Ion Engine Light Nuclear Core Flight Unit Heat Sink Improved Heat Sink Small Storage Unit Lightpack 2.0 0b10 Alert Chip Sensor Drone Bay PSU Rigger Medium Laser Small Laser Small Laser Peak State ------------ > --- POWER ------------ Ion Engine > --- PROPULSION ------- Light Treads Light Treads > --- UTILITY ---------- High-capacity Storage Unit Core Shielding > --- WEAPON ----------- (None) > --- INVENTORY -------- Light Ion Engine Light Ion Engine Light Nuclear Core Aluminum Leg Aluminum Leg Aluminum Leg Flight Unit Heat Sink Improved Heat Sink Small Storage Unit Lightpack 2.0 0b10 Alert Chip Sensor Drone Bay Medium Laser Small Laser Small Laser [Rating: 11] Favorites ----------- Power Light Ion Engine Engine Light Ion Engine Propulsion Light Treads Treads Light Treads Leg Aluminum Leg Utility Core Shielding Storage High-capacity Storage Unit Protection Core Shielding Weapon Medium Laser Energy Gun Medium Laser Build | -11 -10 -10 -10 ------- Run | Yrd Mat Min Exi Slots Evolved . | . . . . Power . | . . . . Propulsion . | . . . . Utility . | . . . . Weapon . | . . . . Parts Attached 16 | 6 4 3 3 Power 4 | 1 1 2 . Engine 4 | 1 1 2 . Core . | . . . . Reactor . | . . . . Propulsion 5 | 2 . . 3 Treads 2 | 2 . . . Leg 3 | . . . 3 Wheel . | . . . . Hover . | . . . . Flight . | . . . . Utility 3 | 1 2 . . Device . | . . . . Storage 2 | 1 1 . . Processor . | . . . . Hackware . | . . . . Protection 1 | . 1 . . Artifact . | . . . . Weapon 4 | 2 1 1 . Energy Gun 4 | 2 1 1 . Energy Cannon . | . . . . Ballistic Gun . | . . . . Ballistic Cannon . | . . . . Launcher . | . . . . Special Weapon . | . . . . Impact Weapon . | . . . . Slashing Weapon . | . . . . Piercing Weapon . | . . . . Special Melee Weapon . | . . . . Unidentified Prototypes . | . . . . Parts Lost 9 | . 3 . 6 Power 2 | . 1 . 1 Propulsion 4 | . . . 4 Utility 1 | . . . 1 Weapon 2 | . 2 . . Highest Loss Streak 6 | . 3 . 6 To Critical Strikes . | . . . . Average Backups 10 | 2 5 10 14 Power 2 | . 1 2 3 Propulsion 3 | 1 2 3 3 Utility 2 | . . 3 4 Weapon 1 | . 1 . 2 Tool/Special . | . . . . Unused Backups 9 | . . . 9 Power 1 | . . . 1 Propulsion 1 | . . . 1 Utility 6 | . . . 6 Weapon 1 | . . . 1 Tool/Special . | . . . . Average Slot Usage (%) 92 | . 96 99 70 Engine 13 | . 13 14 13 Treads 27 | . 28 28 27 Storage 14 | . 14 14 14 Protection 13 | . 12 14 14 Energy Gun 21 | . 27 27 . Peak Build Rating 11 | 6 7 9 11 Average Rating 7 | 4 6 8 8 On Entrance 5 | . 6 5 9 Avg Prop Armor Cover (%) . | . . . . Naked Turns . | . . . . Heaviest Build 50 | 12 50 49 46 Greatest Support 40 | 40 40 40 40 Greatest Overweight (x) 4 | . 1 1 4 Average Overweight (x) . | . . 1 1 Largest Inventory Capacity 20 | 8 20 20 20 Average Capacity 17 | 6 11 20 20 Most Carried 19 | 4 7 12 19 Average Carried 10 | 2 5 10 15 Final Capacity 20 | 8 20 20 20 Final Carried 16 | 4 6 12 16 Class Distribution -------------------- 100% | Mutant Dominant Class ---------------- Mutant | -10/Materials Mutant | -10/Mines Mutant | -10/Exiles Resources | -11 -10 -10 -10 ----------- Run | Yrd Mat Min Exi Matter Collected 365 | 195 82 88 . Remotely . | . . . . Salvage Created 517 | . 321 196 . Parts 29 | . 18 11 . Haulers Intercepted . | . . . . Recyclers Shooed . | . . . . Parts Field Recycled . | . . . . Retrieved Matter . | . . . . Parts Self-Destructed . | . . . . Prevented . | . . . . Parts Restored . | . . . . Kills | -11 -10 -10 -10 ------- Run | Yrd Mat Min Exi Combat Hostiles Destroyed 10 | . 6 4 . Guns 8 | . 4 4 . AOE 2 | . 2 . . Classes Destroyed 3 | . 2 1 . Worker 1 | . . 1 . Watcher 2 | . 2 . . Grunt 10 | . 6 4 . Best Kill Streak 3 | . 3 2 . Combat Bots Only 3 | . 3 2 . Max Kills in Single Turn 2 | . 2 1 . Gunslinging . | . . . . Exploded 2 | . 2 . . Melee . | . . . . Uniques/NPCs Destroyed . | . . . . Combat | -11 -10 -10 -10 -------- Run | Yrd Mat Min Exi Hostile Shots Fired 161 | . 76 17 68 Missed 63 | . 25 11 27 Hits 98 | . 51 6 41 Projectile 98 | . 51 6 41 Critical Strikes 6 | . . . 6 Actively Blocked 1 | . . . 1 Damage Taken 1129 | . 455 79 595 Core 261 | . 70 8 183 Absorbed by Shields . | . . . . Redirected to Shielding 50 | . 13 2 35 Core Remaining (%) 100 | 100 . . . Volleys Fired 31 | . 21 10 . Largest 2 | . 2 2 . Hottest 90 | . 80 90 . Shots Fired 62 | . 41 21 . Gun 62 | . 41 21 . Cannon . | . . . . Launcher . | . . . . Special . | . . . . Kinetic . | . . . . Thermal 22 | . 1 21 . Explosive . | . . . . Electromagnetic 40 | . 40 . . Robot Hit Streak 7 | . 6 7 . Robot Miss Streak 3 | . 3 1 . Penetration Max . | . . . . Secondary Targets . | . . . . Shots Hit Robots 36 | . 21 15 . Core Hits 20 | . 10 10 . Critical Kills . | . . . . Critical Parts Destroyed . | . . . . Critical Strikes 1 | . 1 . . Corrupt 1 | . 1 . . Melee Attacks . | . . . . Impact . | . . . . Slashing . | . . . . Piercing . | . . . . Sneak Attacks . | . . . . Combat Hostiles . | . . . . Follow-up Attacks . | . . . . Damage Inflicted 691 | . 517 174 . Guns 526 | . 352 174 . Cannons . | . . . . Explosions 165 | . 165 . . Melee . | . . . . Ramming . | . . . . Kinetic . | . . . . Thermal 352 | . 178 174 . Explosive . | . . . . Electromagnetic 339 | . 339 . . Impact . | . . . . Slashing . | . . . . Piercing . | . . . . Highest Corruption 8 | . 6 6 8 Average Corruption 5 | . 4 6 6 Corruption Purged . | . . . . Corruption Blocked . | . . . . Effects 70 | . 14 44 12 Message Errors 17 | . 4 10 3 Matter Fused 14 | . 1 10 3 Heat Flow Errors 7 | . 1 5 1 Energy Discharges 15 | . 2 10 3 Parts Fused 2 | . . 2 . Data Loss (minor) 6 | . 3 2 1 Data Loss (major) 3 | . 1 1 1 Misfires 2 | . . 2 . Alerts 3 | . 2 1 . Weapon Failures 1 | . . 1 . Overload Shots . | . . . . Overflow Damage . | . . . . Projectiles . | . . . . Explosions . | . . . . Melee . | . . . . Knockbacks . | . . . . Impact . | . . . . Kinetic . | . . . . Secondary . | . . . . Self-Inflicted Damage . | . . . . Shots . | . . . . Rammed 2 | . 1 1 . Targets Rammed 2 | . 1 1 . Kicked . | . . . . Crushed . | . . . . Highest Temperature 194 | . 129 194 104 Average Temperature 55 | . 43 66 55 Received Heat Transfer 147 | . 72 45 30 Siege Activations . | . . . . Martial Activations . | . . . . Shielding Activations . | . . . . Robots Disrupted . | . . . . Combat Hostiles . | . . . . Robots Corrupted . | . . . . Combat Hostiles . | . . . . Parts Fried 1 | . 1 . . Impact Corruptions . | . . . . Robots Melted . | . . . . Combat Hostiles . | . . . . Parts Melted 1 | . . 1 . Heat Transferred 796 | . 337 459 . Parts Sabotaged . | . . . . Parts Stolen . | . . . . Parts Stripped . | . . . . Power Chain Reactions 2 | . 2 . . Alert | -11 -10 -10 -10 ------- Run | Yrd Mat Min Exi Maximum Alert Level . | . . . . Low Security (%) 100 | 100 100 100 . Level 1 . | . . . . Level 2 . | . . . . Level 3 . | . . . . Level 4 . | . . . . Level 5 . | . . . . High Security . | . . . . Max Security . | . . . . Peak Influence 69 | . 69 64 . Initial 14 | . . 14 . Average 7 | . 10 6 . Influence Increases 308 | . 188 120 . Destroy 0b10 Robot/C 200 | . 120 80 . Destroy 0b10 Robot/NC 15 | . 10 5 . Destroy Leader 54 | . 34 20 . Successful Hack 2 | . 2 . . Destroy Structure 7 | . 7 . . Lose Combat Pursuer 30 | . 15 15 . Influence Decreases 308 | . 150 158 . Entered New Map 24 | . . 24 . Time Decay 254 | . 120 134 . Lost Part 30 | . 30 . . Squads Dispatched 2 | . 2 . . Investigation 1 | . 1 . . Extermination . | . . . . Reinforcement 1 | . 1 . . Assault . | . . . . Garrison . | . . . . Intercept . | . . . . Searches Triggered . | . . . . Construction Impeded . | . . . . Haulers Reinforced . | . . . . Active Scanning Responses . | . . . . Cargo Convoy Interrupts . | . . . . Stealth | -11 -10 -10 -10 --------- Run | Yrd Mat Min Exi Distress Signals . | . . . . Communications Jammed . | . . . . Distress Signals . | . . . . Times Spotted 30 | . 18 5 7 Peak Tracking Total 8 | . 7 2 8 Tactical Retreats 2 | . 1 1 . Traps | -11 -10 -10 -10 ------- Run | Yrd Mat Min Exi Traps Triggered 5 | . 5 . . Indirectly . | . . . . Trap Hack Attempts . | . . . . Triggered . | . . . . Disarmed . | . . . . Reprogrammed . | . . . . Reused . | . . . . Traps Extracted . | . . . . Installed . | . . . . Triggered . | . . . . Machines | -11 -10 -10 -10 ---------- Run | Yrd Mat Min Exi Machines Disabled . | . . . . Max in Single Turn . | . . . . Machines Repaired . | . . . . Machines Dismantled . | . . . . Machines Sabotaged . | . . . . Overloaded Fab Kills . | . . . . Hacking | -11 -10 -10 -10 --------- Run | Yrd Mat Min Exi Machines Accessed 5 | . 3 1 1 Terminals 3 | . 3 . . Fabricators . | . . . . Repair Stations . | . . . . Recycling Units . | . . . . Scanalyzers . | . . . . Garrison Access . | . . . . Total Hacks 11 | . 9 1 1 Successful 6 | . 4 1 1 Failed 5 | . 5 . . Catastrophic 3 | . 3 . . Database Lockouts . | . . . . Manual 9 | . 8 . 1 Terminals 9 | . 9 . . Fabricators . | . . . . Repair Stations . | . . . . Recycling Units . | . . . . Scanalyzers . | . . . . Garrison Access . | . . . . Terminal Hacks 3 | . 1 1 1 Record 1 | . 1 . . Open Door 1 | . . 1 . Proto ID Catalog 1 | . . . 1 Fabricator Hacks . | . . . . Repair Station Hacks . | . . . . Recycling Unit Hacks . | . . . . Scanalyzer . | . . . . Garrison Access Hacks . | . . . . Unauthorized Hacks 3 | . 3 . . Terminals 3 | . 3 . . Track 1 | . 1 . . Botnet 1 | . 1 . . Operators 1 | . 1 . . Fabricators . | . . . . Repair Stations . | . . . . Recycling Units . | . . . . Scanalyzers . | . . . . Garrison Access . | . . . . Data Cores Recovered . | . . . . Used . | . . . . Hacking Detections 2 | . 2 . . Full Trace Events 1 | . 1 . . Feedback Events . | . . . . Feedback Blocked . | . . . . Robot Schematics Acquired . | . . . . Robots Built . | . . . . Authchips . | . . . . Time . | . . . . Total Robot Build Rating . | . . . . Part Schematics Acquired . | . . . . Parts Built . | . . . . Authchips . | . . . . Time . | . . . . Total Part Build Rating . | . . . . Part Studies Acquired . | . . . . Parts Repaired . | . . . . Time . | . . . . Parts Recycled . | . . . . Recycled Matter . | . . . . Retrieved Matter . | . . . . Retrieved Components . | . . . . Parts Scanalyzed . | . . . . Part Schematics Acquired . | . . . . Parts Damaged . | . . . . Bothacking | -11 -10 -10 -10 ------------ Run | Yrd Mat Min Exi Used RIF Installer . | . . . . Robots Hacked . | . . . . Non-combat . | . . . . Combat . | . . . . Robot Hacks Applied . | . . . . Relay Couplers Released . | . . . . Fabnet Peak Effective % . | . . . . Robots Rewired . | . . . . Allies Hacked . | . . . . Hacks Repelled . | . . . . Allies | -11 -10 -10 -10 -------- Run | Yrd Mat Min Exi Total Allies . | . . . . Largest Group . | . . . . Highest-Rated Group . | . . . . Highest-Rated Ally . | . . . . Total Orders . | . . . . Ally Attacks . | . . . . Total Damage . | . . . . Kills . | . . . . Allies Corrupted . | . . . . Allies Melted . | . . . . Intel | -11 -10 -10 -10 ------- Run | Yrd Mat Min Exi Active Infowar (turns) . | . . . . Robot Analysis Total . | . . . . Derelict Logs Recovered 1 | . . 1 . Drone Launches . | . . . . Drone Recoveries . | . . . . Exploration | -11 -10 -10 -10 ------------- Run | Yrd Mat Min Exi Turns Passed 2712 | 67 564 1503 578 Spaces Moved 1134 | 37 266 595 236 Core 4 | 4 . . . Treads 1127 | 33 266 595 233 Legs 3 | . . . 3 Wheels . | . . . . Hover . | . . . . Flight . | . . . . Fastest Speed 50 | 50 160 240 240 Average Speed 222 | 148 174 240 241 Slowest Speed 400 | 160 240 240 400 Overloaded Moves . | . . . . Propulsion Burnouts . | . . . . Robots Hopped . | . . . . Potential Cave-ins . | . . . . Cave-ins Triggered . | . . . . Exploration Rate (%) 48 | 3 50 97 42 Regions Visited 3 Branch Regions 2 Pre-discovered Areas . | . . . . Known Exits Taken . | . . . . Unknown Exits Taken 3 | 1 1 1 . Scrap Searched 1 | . . 1 . Spaces Dug . | . . . . Terrain Destroyed 7 | . 7 . . Melee . | . . . . Projectile . | . . . . AOE 7 | . 7 . . Terrain Rammed . | . . . . Walls Destroyed . | . . . . Machines Disabled . | . . . . Actions | -11 -10 -10 -10 --------- Run | Yrd Mat Min Exi Total 1262 | 46 323 649 244 Wait 64 | . 30 34 . Move 1131 | 36 265 594 236 Hop . | . . . . Pick Up 14 | 4 . 7 3 Fast Attach 8 | 6 2 . . Attach 6 | . 1 2 3 Detach 3 | . 1 . 2 Swap 3 | . 2 1 . Drop . | . . . . Fire 31 | . 21 10 . Melee . | . . . . Ram . | . . . . Kick . | . . . . Crush 2 | . 1 1 . Escape Stasis . | . . . . Rewire . | . . . . Trap . | . . . . Miscellaneous . | . . . . Route ------- -11/Scrapyard -10/Materials (discovered 2 exits: *Min x2) -10/Mines (discovered 4 exits: [*Mat x2] / *Exi / [*Sub]) -10/Exiles (discovered 2 exits: *Min x2) History --------- Turn | Location | Event 13 | -11/Scrapyard | Discovered new exit (range 15) 68 | -11/Scrapyard | Entered Materials 112 | -10/Materials | Discovered new exit (range 12) 312 | -10/Materials | Build established: Mutant 523 | -10/Materials | Discovered new exit (range 15) 632 | -10/Materials | Entered Mines 648 | -10/Mines | Lost 3 parts (1p2w) 830 | -10/Mines | Discovered new exit (range 11) 902 | -10/Mines | Discovered new exit (range 10) 969 | -10/Mines | Found a hidden stash of uninstalled traps 1270 | -10/Mines | Discovered new exit (range 16) 1614 | -10/Mines | Found the Drone Emporium 1630 | -10/Mines | Found Prototype Device 2125 | -10/Mines | Deemed a non-threat by the Exiles lab entrance 2125 | -10/Mines | Discovered new exit (range 5) 2135 | -10/Mines | Entered Exiles 2136 | -10/Exiles | Identified exit to Mines 2196 | -10/Exiles | Met 8R-AWN 2237 | -10/Exiles | Met EX-HEX 2340 | -10/Exiles | Met EX-BIN 2367 | -10/Exiles | Aligned with FarCom system 2369 | -10/Exiles | Given EX-Vault access code 2427 | -10/Exiles | Opened EX-Vault 2444 | -10/Exiles | Found Lightpack 2.0 2493 | -10/Exiles | Warned to stay clear of 0b10 Research branches 2525 | -10/Exiles | Exiles lab attacked by MAIN.C 2593 | -10/Exiles | Found 0b10 Alert Chip 2602 | -10/Exiles | Found PSU Rigger 2697 | -10/Exiles | Core integrity fell below 50% 2710 | -10/Exiles | Core integrity fell below 20% 2713 | -10/Exiles | Destroyed by P-60 Hacker with Shock Rifle Last Messages --------------- 02560_ EXILES: Lab perimeter alert, evacuate immediately. 02563_ System corrupted: Matter fused (-10). 02593_ Acquired 0b10 Alert Chip. 02602_ Acquired PSU Rigger. 02637_ System corrupted: Component data lost. 02653_ N QQ%O/TE9,OHYG 4XQX&ZZ<:CQFTPH&A4&&S% 02671_ =SX0 ,CG:ZIX 02705_ Penetrated by Slug. 02705_ Ion Engine destroyed. 02705_ Penetrated by Slug. 02705_ Aluminum Leg destroyed. 02706_ System corrupted: Energy discharge (-33). 02708_ Machine disabled. 02711_ Aluminum Leg destroyed. 02712_ Core Shielding destroyed. Map ----- +----------------------------------------------------+ | ??????????????????#""X" #????????????????? | | ??????????????????#" #????????????????? | | ??????????????????#" ## #????????????????? | | ??????????????????#""""""?# #?#########??????? | | ??????????????????##"###??# #?#"""""""#??????? | | ??????????????????? ??????# #?#"""""""#??????? | | ??????????????????????????# #?#"""""""#??????? | | ?????????????????????????## ###"" """"#??????? | | ?????????????????????????#" """"#??????? | | ?????????????????????????#" """#??????? | | ?????????????????????????#" """#??????? | | ?????????????????????????#" """#??????? | | ?????????????????????????#" """#??????? | | ?????????????????????????#" """##?????? | | ?????????????????????????## """""?????? | | ??????????????????????????# """##?????? | | ??????????????????????????#" "X" """""?????? | | ??????????????????????????#" """ #??????? | | ??????????????????????????# """""""""#??????? | | ?????????????????????????## ###########??????? | | ????????????????????????## #????????????????? | | ???????????????????######" #????????????????? | | ??????????????????##"""" p ##???????????????? | | ?????????????????""""" ##???###########? | | ??????????????? "" """ #####"""""""""## | | ?????????????? " " @ " """ """"# | | ???????????? "" " | | ?????????? p " """ | | ??????????? " " | | ??????????? |! " " | | ???????????? =%% g " | | ???????????? *"""""" pggh | | ???????????? ######""" | | ????????????? ""#?????#####""" | | ????????????? ""#??????????##""" | | ?????????????? ""?#????????????#"""" | | ?????????????? ???????????????#"" | | ??????????????????????????????????""" | | ?????????????????????????????????? | | ?????????????????????????????????? | | ????????????????????????????????? | | ????????????????????????????????? | | ?????????????????????????????????? " | | ???????????????????????????????????? """ | | ??????????????????????????????????????? ""#" | | ???????????????????????????????????????????##""""" | | ????????????????????????????????????????????###### | | ?????????????????????????????????????????????????? | | ?????????????????????????????????????????????????? | | ?????????????????????????????????????????????????? | +----------------------------------------------------+ Best States ------------- Heat Dissipation 25 Energy Generation 10 Energy Capacity 250 Matter Stores 300 Matter Capacity 300 Sight Range 16 Terrain Scan Density 10 Core Shielding 20 Evasion (%) 40 Recoil Reduction 2 Item Schematics ----------------- None Robot Schematics ------------------ None Fabricated ------------ Nothing Repaired ---------- Nothing Studied --------- None Alien Tech Used ----------------- None Achievements -------------- That Tickles Challenges ------------ None Game ------ Seed AlertBombardmentCoupler Manual? 0 Play Time 00:16:19 Cumulative 89.5 hours Start 2025.12.27 @ 14:55:06 End 2025.12.27 @ 15:11:58 Sessions 1 Manual Loads 0 Difficulty Rogue Special Mode None Game No. 103 Rogue 103 Adventurer 0 Explorer 0 Win Type - Total 3 Types 3/0/0/0/0/0/0/0/0/0 Lore% 56 Gallery% 46 Achievement% 31 Wizard Run 0 Options --------- Layout 1 ASCII 0 Keyboard 1 Movement Vi Keybinds 0 Fullscreen 2 Font 24/Terminus Map View 50x35 Zoom Use 0% Tactical HUD 1 Map Filters NONE Filters NONE Steam 1 RUN: 055a754b-5a7e-4267-a31f-e4dea728cda1